Cogmind - Beta 15 @@@ ROGUE MODE // 2025.06.01 @ 01:12:59 Player: Skysub Result: Destroyed by Y-45 Defender with Heavy Assault Rifle Performance ------------- Evolutions (2) 1000 Regions Visited (3) 600 Robots Destroyed (66) 330 Value Destroyed (1873) 1873 Prototype IDs (14) 280 Alien Tech Used (0) 0 Bonus (312) 312 TOTAL SCORE: 4395 Bonus ------- High Alert Combat Kills 312 Cogmind --------- Core Integrity 0/550 Matter 141/300 Energy 46/100 System Corruption 2% Temperature Cool (0) Movement Walking (200) Ox1 Location -8/Materials Parts ------- > --- POWER (1) -------- (None) > --- PROPULSION (3) --- Titanium Leg > --- UTILITY (5) ------ Large Storage Unit Structural Scanner Improved Signal Interpreter High-powered Tractor Beam > --- WEAPON (2) ------- (None) > --- INVENTORY (15) --- Meta Core Advanced Visual Processing Unit Improved Signal Interpreter Improved Power Shielding Scrap Shield Hacking Suite Heavy Assault Rifle Subdweller Machine Gun Subdweller Machine Gun Enhanced Autogun Subdweller Shrapnel Launcher Mining Laser Maul Great Maul Peak State ------------ > --- POWER ------------ Light Deuterium Engine > --- PROPULSION ------- Carbon-fiber Leg Carbon-fiber Leg Titanium Leg > --- UTILITY ---------- Large Storage Unit Structural Scanner Improved Signal Interpreter Hardened Medium Armor Plating High-powered Tractor Beam > --- WEAPON ----------- Subdweller Shrapnel Launcher Great Maul > --- INVENTORY -------- Meta Core Advanced Visual Processing Unit Improved Signal Interpreter Improved Power Shielding Scrap Shield Hacking Suite Heavy Assault Rifle Subdweller Machine Gun Subdweller Machine Gun Enhanced Autogun Grenade Launcher Mini Grenade Launcher Mining Laser Maul [Rating: 32] Favorites ----------- Power Light Deuterium Engine Engine Light Deuterium Engine Propulsion Light Treads Treads Light Treads Leg Carbon-fiber Leg Hover Unit Aerolev Unit Flight Unit Improved VTOL Module Utility Large Storage Unit Device Structural Scanner Storage Large Storage Unit Processor Improved Signal Interpreter Protection Hardened Medium Armor Plating Weapon Subdweller Shrapnel Launcher Energy Gun Small Laser Ballistic Gun Heavy Assault Rifle Launcher Subdweller Shrapnel Launcher Impact Weapon Great Maul Slashing Weapon Makeshift Axe Build | -11 -10 -10 -8 ------- Run | Yrd Mat Sub Mat Slots Evolved 4 | . . . 4 Power . | . . . . Propulsion 1 | . . . 1 Utility 3 | . . . 3 Weapon . | . . . . Parts Attached 38 | 6 4 3 25 Power 3 | 1 . . 2 Engine 3 | 1 . . 2 Core . | . . . . Reactor . | . . . . Propulsion 13 | 2 . . 11 Treads 5 | 2 . . 3 Leg 5 | . . . 5 Wheel . | . . . . Hover 2 | . . . 2 Flight 1 | . . . 1 Utility 9 | 1 2 1 5 Device 4 | . 1 . 3 Storage 2 | 1 1 . . Processor 1 | . . . 1 Hackware . | . . . . Protection 2 | . . 1 1 Artifact . | . . . . Weapon 13 | 2 2 2 7 Energy Gun 2 | 2 . . . Energy Cannon . | . . . . Ballistic Gun 3 | . . . 3 Ballistic Cannon . | . . . . Launcher 5 | . 1 1 3 Special Weapon . | . . . . Impact Weapon 2 | . 1 . 1 Slashing Weapon 1 | . . 1 . Piercing Weapon . | . . . . Special Melee Weapon . | . . . . Unidentified Prototypes 3 | . . . 3 Parts Lost 16 | . . . 16 Power 3 | . . . 3 Propulsion 6 | . . . 6 Utility 2 | . . . 2 Weapon 5 | . . . 5 Highest Loss Streak 4 | . . . 4 To Critical Strikes . | . . . . Average Backups 12 | 2 6 13 13 Power . | . 1 1 . Propulsion . | 1 2 1 . Utility 3 | . . 1 4 Weapon 7 | . 2 8 8 Tool/Special . | . . . . Unused Backups 13 | . . 4 9 Power 1 | . . 1 . Propulsion 2 | . . 2 . Utility 5 | . . . 5 Weapon 4 | . . 1 3 Tool/Special 1 | . . . 1 Average Slot Usage (%) 89 | . 93 100 86 Engine 9 | . 14 14 8 Treads 14 | . 28 28 9 Leg 7 | . . . 9 Device 16 | . 8 12 17 Storage 10 | . 14 14 9 Processor 6 | . . . 8 Protection 3 | . . 1 4 Energy Gun 1 | . 18 . . Ballistic Gun 3 | . . . 4 Launcher 7 | . 7 15 5 Impact Weapon 5 | . 2 9 4 Slashing Weapon 2 | . . 3 3 Peak Build Rating 32 | 6 9 15 32 Average Rating 20 | 4 6 10 25 On Entrance 7 | . 6 9 14 Naked Turns . | . . . . Heaviest Build 47 | 10 30 41 47 Greatest Support 60 | 40 40 40 60 Greatest Overweight (x) 10 | . . 1 10 Average Overweight (x) . | . . . . Largest Inventory Capacity 15 | 8 15 15 15 Average Capacity 14 | 7 14 15 15 Most Carried 15 | 4 11 15 15 Average Carried 13 | 2 7 13 14 Final Capacity 15 | 8 15 15 15 Final Carried 15 | 4 11 15 15 Class Distribution -------------------- 44% | Mutant 43% | Assassin 12% | Skirmisher Dominant Class ---------------- Mutant | -10/Materials Mutant | -10/Subcaves Assassin | -8/Materials Resources | -11 -10 -10 -8 ----------- Run | Yrd Mat Sub Mat Matter Collected 1506 | 228 . 106 1172 Remotely 795 | . . . 795 Salvage Created 1523 | 121 98 39 1265 Parts 100 | 7 6 2 85 Haulers Intercepted 2 | . . . 2 Recyclers Shooed . | . . . . Parts Field Recycled . | . . . . Retrieved Matter . | . . . . Parts Self-Destructed . | . . . . Prevented . | . . . . Kills | -11 -10 -10 -8 ------- Run | Yrd Mat Sub Mat Combat Hostiles Destroyed 43 | . 3 2 38 Melee 4 | . . . 4 Guns 7 | . . . 7 AOE 31 | . 3 2 26 Classes Destroyed 12 | 2 1 1 8 Worker 6 | . . . 6 Builder 7 | . . . 7 Tunneler 3 | 2 . . 1 Hauler 2 | . . . 2 Recycler 3 | 1 . . 2 Mechanic 2 | . . . 2 Swarmer 13 | . . . 13 Grunt 15 | . 3 . 12 Brawler 1 | . . . 1 Sentry 8 | . . . 8 Hunter 4 | . . . 4 Subdweller 2 | . . 2 . Best Kill Streak 9 | 2 3 2 9 Combat Bots Only 7 | . 3 2 7 Max Kills in Single Turn 5 | 1 2 1 5 Gunslinging . | . . . . Exploded 4 | . 2 1 4 Melee 1 | . . . 1 Uniques/NPCs Destroyed . | . . . . Combat | -11 -10 -10 -8 -------- Run | Yrd Mat Sub Mat Hostile Shots Fired 198 | . 6 15 177 Missed 52 | . 3 3 46 Hits 146 | . 3 12 131 Projectile 146 | . 3 12 131 Critical Strikes 4 | . . 1 3 Damage Taken 2443 | . 33 269 2141 Core 607 | . 11 40 556 Absorbed by Shields . | . . . . Ignored by Resistances 23 | . . 19 4 Regen/Repaired (Parts) 79 | . . . 79 Core Remaining (%) 89 | 100 . 79 . Volleys Fired 82 | 6 4 2 70 Largest 2 | 2 2 2 2 Hottest 80 | 80 80 70 60 Shots Fired 100 | 12 8 4 76 Gun 44 | 12 6 . 26 Cannon . | . . . . Launcher 56 | . 2 4 50 Special . | . . . . Kinetic 61 | . . 2 59 Thermal 18 | 12 6 . . Explosive 21 | . 2 2 17 Electromagnetic . | . . . . Robot Hit Streak 9 | 8 9 4 7 Robot Miss Streak 3 | 1 1 1 3 Penetration Max . | . . . . Secondary Targets . | . . . . Shots Hit Robots 70 | 9 4 3 54 Core Hits 98 | 4 4 4 86 Critical Kills . | . . . . Critical Parts Destroyed 5 | . . . 5 Critical Strikes 6 | . . . 6 Smash 5 | . . . 5 Sever 1 | . . . 1 Melee Attacks 35 | . 2 3 30 Impact 28 | . 2 1 25 Slashing 7 | . . 2 5 Piercing . | . . . . Sneak Attacks 4 | . . . 4 Combat Hostiles . | . . . . Follow-up Attacks . | . . . . Damage Inflicted 6016 | 104 113 253 5546 Guns 429 | 101 11 . 317 Cannons . | . . . . Explosions 4480 | . 102 253 4125 Melee 1094 | . . . 1094 Ramming 13 | 3 . . 10 Kinetic 3396 | . . 147 3249 Thermal 181 | 101 11 . 69 Explosive 1301 | . 102 106 1093 Electromagnetic 31 | . . . 31 Impact 991 | . . . 991 Slashing 103 | . . . 103 Piercing . | . . . . Highest Corruption 2 | . . . 2 Average Corruption 2 | . . . 2 Corruption Purged . | . . . . Corruption Blocked . | . . . . Effects 28 | . . . 28 Message Errors 6 | . . . 6 Matter Fused 9 | . . . 9 Heat Flow Errors 2 | . . . 2 Energy Discharges 4 | . . . 4 Parts Rejected 1 | . . . 1 Data Loss (minor) 5 | . . . 5 Misfires 1 | . . . 1 Overload Shots . | . . . . Overflow Damage 618 | . . . 618 Projectiles . | . . . . Explosions 188 | . . . 188 Melee 430 | . . . 430 Knockbacks 6 | . . . 6 Impact 6 | . . . 6 Kinetic . | . . . . Secondary . | . . . . Self-Inflicted Damage 106 | . . . 106 Shots 4 | . . . 4 Rammed 2 | 1 . . 1 Targets Rammed 2 | 1 . . 1 Kicked . | . . . . Crushed . | . . . . Highest Temperature 202 | 54 36 . 202 Average Temperature 45 | 23 15 . 58 Received Heat Transfer 612 | . 18 . 594 Siege Activations . | . . . . Martial Activations . | . . . . Shielding Activations . | . . . . Robots Disrupted . | . . . . Combat Hostiles . | . . . . Robots Corrupted 3 | . . . 3 Combat Hostiles 1 | . . . 1 Parts Fried 6 | . . . 6 Impact Corruptions 16 | . . . 16 Robots Melted . | . . . . Combat Hostiles . | . . . . Parts Melted . | . . . . Heat Transferred 300 | 225 25 . 50 Parts Sabotaged . | . . . . Parts Stolen . | . . . . Parts Stripped . | . . . . Power Chain Reactions . | . . . . Alert | -11 -10 -10 -8 ------- Run | Yrd Mat Sub Mat Maximum Alert Level 4 | . . . 4 Low Security (%) 20 | 100 100 . 7 Level 1 67 | . . . 77 Level 2 6 | . . . 7 Level 3 3 | . . . 4 Level 4 2 | . . . 2 Level 5 . | . . . . High Security . | . . . . Max Security . | . . . . Peak Influence 1183 | 5 153 . 1183 Initial . | . . . . Average 306 | . 66 . 347 Influence Increases 2118 | 15 174 . 1929 Destroy 0b10 Robot/C 820 | . 60 . 760 Destroy 0b10 Robot/NC 115 | 15 . . 100 Destroy Leader 214 | . 20 . 194 Successful Hack 24 | . . . 24 Select Force Hacks 30 | . 30 . . Disable Machine 225 | . 30 . 195 Anti-Garrison Action 150 | . . . 150 Destroy Structure 420 | . 34 . 386 Lose Combat Pursuer 120 | . . . 120 Influence Decreases 964 | 15 70 104 775 Entered New Map 51 | . . 51 . Time Decay 753 | 15 70 53 615 Lost Part 160 | . . . 160 Squads Dispatched 10 | . 2 . 8 Investigation 1 | . 1 . . Extermination . | . . . . Reinforcement 5 | . 1 . 4 Assault 2 | . . . 2 Garrison 2 | . . . 2 Intercept . | . . . . Searches Triggered . | . . . . Construction Impeded . | . . . . Haulers Reinforced . | . . . . Active Scanning Responses . | . . . . Cargo Convoy Interrupts . | . . . . Stealth | -11 -10 -10 -8 --------- Run | Yrd Mat Sub Mat Distress Signals 7 | . . . 7 Communications Jammed . | . . . . Distress Signals . | . . . . Times Spotted 72 | . 6 2 64 Peak Tracking Total 7 | . 3 2 7 Tactical Retreats 6 | . . . 6 Traps | -11 -10 -10 -8 ------- Run | Yrd Mat Sub Mat Traps Triggered 2 | . . 1 1 Indirectly . | . . . . Trap Hack Attempts . | . . . . Triggered . | . . . . Disarmed . | . . . . Reprogrammed . | . . . . Reused . | . . . . Traps Extracted . | . . . . Installed . | . . . . Triggered . | . . . . Machines | -11 -10 -10 -8 ---------- Run | Yrd Mat Sub Mat Machines Disabled 17 | . 2 1 14 Max in Single Turn 2 | . 1 1 2 Garrison Access 1 | . . . 1 Machines Repaired . | . . . . Machines Dismantled . | . . . . Machines Sabotaged . | . . . . Overloaded Fab Kills . | . . . . Hacking | -11 -10 -10 -8 --------- Run | Yrd Mat Sub Mat Machines Accessed 12 | . 1 1 10 Terminals 7 | . . . 7 Fabricators . | . . . . Repair Stations 1 | . . . 1 Recycling Units 2 | . 1 . 1 Scanalyzers . | . . . . Garrison Access 1 | . . . 1 Total Hacks 25 | . 2 1 22 Successful 12 | . 2 1 9 Failed 13 | . . . 13 Catastrophic 2 | . . . 2 Database Lockouts . | . . . . Manual 15 | . 1 . 14 Terminals 17 | . . . 17 Fabricators . | . . . . Repair Stations 2 | . . . 2 Recycling Units 3 | . 2 . 1 Scanalyzers . | . . . . Garrison Access 2 | . . . 2 Terminal Hacks 4 | . . 1 3 Recall Investigation 1 | . . . 1 Registered Components 1 | . . . 1 Zone Layout 1 | . . . 1 Proto ID Catalog 1 | . . 1 . Fabricator Hacks . | . . . . Repair Station Hacks 2 | . . . 2 Scan Component 1 | . . . 1 Repair 1 | . . . 1 Recycling Unit Hacks 2 | . 1 . 1 Report Inventory 2 | . 1 . 1 Scanalyzer . | . . . . Garrison Access Hacks . | . . . . Unauthorized Hacks 4 | . 1 . 3 Terminals 3 | . . . 3 Botnet 3 | . . . 3 Fabricators . | . . . . Repair Stations . | . . . . Recycling Units 1 | . 1 . . Tunnel 1 | . 1 . . Scanalyzers . | . . . . Garrison Access . | . . . . Data Cores Recovered . | . . . . Used . | . . . . Hacking Detections 10 | . 1 . 9 Full Trace Events 1 | . . . 1 Feedback Events . | . . . . Feedback Blocked . | . . . . Robot Schematics Acquired . | . . . . Robots Built . | . . . . Authchips . | . . . . Time . | . . . . Total Robot Build Rating . | . . . . Part Schematics Acquired . | . . . . Parts Built . | . . . . Authchips . | . . . . Time . | . . . . Total Part Build Rating . | . . . . Parts Repaired 1 | . . . 1 Time 32 | . . . 32 Parts Recycled . | . . . . Recycled Matter . | . . . . Retrieved Matter . | . . . . Retrieved Components . | . . . . Parts Scanalyzed . | . . . . Part Schematics Acquired . | . . . . Parts Damaged . | . . . . Bothacking | -11 -10 -10 -8 ------------ Run | Yrd Mat Sub Mat Used RIF Installer . | . . . . Robots Hacked . | . . . . Non-combat . | . . . . Combat . | . . . . Robot Hacks Applied . | . . . . Relay Couplers Released 2 | . . . 2 Machine Destruction 2 | . . . 2 Fabnet Peak Effective % . | . . . . Robots Rewired . | . . . . Allies Hacked . | . . . . Hacks Repelled . | . . . . Allies | -11 -10 -10 -8 -------- Run | Yrd Mat Sub Mat Total Allies . | . . . . Largest Group . | . . . . Highest-Rated Group . | . . . . Highest-Rated Ally . | . . . . Total Orders . | . . . . Ally Attacks . | . . . . Total Damage . | . . . . Kills . | . . . . Allies Corrupted . | . . . . Allies Melted . | . . . . Intel | -11 -10 -10 -8 ------- Run | Yrd Mat Sub Mat Active Infowar (turns) 2923 | . 117 490 2316 Sensors 1806 | . . . 1806 Structural 2923 | . 117 490 2316 Robot Analysis Total . | . . . . Derelict Logs Recovered . | . . . . Drone Launches . | . . . . Drone Recoveries . | . . . . Exploration | -11 -10 -10 -8 ------------- Run | Yrd Mat Sub Mat Turns Passed 3252 | 158 201 549 2344 Spaces Moved 1495 | 84 107 312 992 Core 10 | 7 . . 3 Treads 927 | 77 107 312 431 Legs 558 | . . . 558 Wheels . | . . . . Hover . | . . . . Flight . | . . . . Fastest Speed 50 | 50 160 160 120 Average Speed 177 | 150 160 164 185 Slowest Speed 550 | 160 160 240 550 Overloaded Moves . | . . . . Propulsion Burnouts . | . . . . Robots Hopped . | . . . . Potential Cave-ins . | . . . . Cave-ins Triggered . | . . . . Exploration Rate (%) 35 | 6 29 17 89 Regions Visited 3 Branch Regions 1 Pre-discovered Areas 1 | . 1 . . Known Exits Taken . | . . . . Unknown Exits Taken 3 | 1 1 1 . Scrap Searched 5 | . . 5 . Spaces Dug 6 | . 1 . 5 Terrain Destroyed 524 | . 40 29 455 Melee 6 | . 1 . 5 Projectile 1 | . . . 1 AOE 517 | . 39 29 449 Terrain Rammed . | . . . . Walls Destroyed . | . . . . Machines Disabled . | . . . . Actions | -11 -10 -10 -8 --------- Run | Yrd Mat Sub Mat Total 1922 | 100 123 341 1358 Wait 213 | . . . 213 Move 1492 | 83 106 311 992 Hop . | . . . . Pick Up 30 | 4 6 12 8 Fast Attach 21 | 6 2 . 13 Attach 6 | . . . 6 Detach 2 | . 1 . 1 Swap 23 | . 2 4 17 Drop 16 | . . 9 7 Fire 82 | 6 4 2 70 Melee 35 | . 2 3 30 Ram . | . . . . Kick . | . . . . Crush 2 | 1 . . 1 Escape Stasis . | . . . . Rewire . | . . . . Trap . | . . . . Miscellaneous . | . . . . Route ------- -11/Scrapyard -10/Materials -10/Subcaves (discovered 2 exits: *Mat x2) -8/Materials (discovered 2 exits: *Fac x2) History --------- Turn | Location | Event 20 | -11/Scrapyard | Discovered new exit (range 15) 159 | -11/Scrapyard | Entered Materials 301 | -10/Materials | Discovered new exit (range 7) 311 | -10/Materials | Build established: Mutant 360 | -10/Materials | Entered Subcaves 360 | -10/Subcaves | Discovered new exit (range 5) 637 | -10/Subcaves | Shifting Twisted Machinery released Battle Rifle 638 | -10/Subcaves | Shifting Twisted Machinery released Scrap Shield 719 | -10/Subcaves | Ambushed by Subdwellers from Twisted Machinery 747 | -10/Subcaves | Discovered new exit (range 16) 791 | -10/Subcaves | Visited 4L-MR0's lab 806 | -10/Subcaves | Found Meta Core 909 | -10/Subcaves | Entered Materials 909 | -8/Materials | Evolved 4 slots: Propulsion x1, Utility x3 1280 | -8/Materials | Build established: Assassin 1372 | -8/Materials | Lost 3 parts (2n1u) 1696 | -8/Materials | Core integrity fell below 50% 1723 | -8/Materials | Lost 4 parts (1p1n2w) 1994 | -8/Materials | Build established: Skirmisher 2213 | -8/Materials | Repaired Sub. Shrapnel Launcher 2385 | -8/Materials | Build established: Assassin 2404 | -8/Materials | Discovered new exit (range 15) 2429 | -8/Materials | Identified exit to Factory 2906 | -8/Materials | Discovered exit to Factory (range 3) 2964 | -8/Materials | Garrison activated, responded to threat 3061 | -8/Materials | Build established: Mutant 3182 | -8/Materials | Core integrity fell below 20% 3215 | -8/Materials | Destroyed 7 combat bots 3253 | -8/Materials | Destroyed by Y-45 Defender with Heavy Assault Rifle Last Messages --------------- Destroyed Lgt. Nuclear Core. G-47 Trooper destroyed. G-50 Soldier destroyed. Acquired 20 matter. R-06 Scavenger collects Lgt. Treads. Acquired 87 matter. The unstable cave ceiling collapses. Knocked back. Carbon-fiber Leg destroyed. Knocked back. H-61 Shepherd calls for reinforcements. ALERT: Hostile activity reported, dispatching reinforcements to area. Penetrated by Slug. Grenade Launcher destroyed. Acquired 7 matter. Penetrated by Slug. Knocked back. Carbon-fiber Leg destroyed. Mni. Grenade Launcher destroyed. Map ----- +----------------------------------------------------+ | ?????????????## ?? | | ?????????????## ????????????????? | | ?????????????## ? ???????????? | | ?????????????## ###+???????????? | | ?????????????## ## ???????????? | | ????????????### ## ???????????## | | ??????????##### ## ?????????? # | | ??????????#### # "?????????## | | ?????????? # "?????????# | | ???????????? # ""????????## | | ????????????? # ""????????# | | ?????????????# # """????????## | | ??????#####??## ## ""?????????## | | ??????# ##### ## ""?????????## | | ?????? ### ## ?? ######### | | ?????? # ## ? ######### | | ??????# %##/##### # | | #??#### H ##### """ # | | # + """ # | | # """ Y #####"## #### """ # | | # """ # #########"#### # | | # """ # #???###### " ## # | | # # #???## # | | # """ # ###### # | | # """ + ###### ##+#### | | # """%; @ ## # ### | | # ###r# "" = | | # """ ??? ## "" ### | | # """ ??? ## "T ### | | # """ ??? ## "" # # | | # ???? ## "" !# # " | | #?####???? ## # # " | | ?????????? ## """ #^ # " | | ?######### ## """ # [/ # | | ########## ## """ # | | ###""""""#+## """ " | | ## " !]] # " # | | ## " !]] # " | | ## " !]] ###+###" | | ## " =! # ##" % | | ## "= ! + = % | | ###"[* "" # T | | ?## "" # # "" | | ?### """"" ## ## ## " # | | ?### ## ##! !## #### | | ??############ ###!!!!### # | | ?????######### ########## # | | ?????????##### ########## # | | ?????????## # | | ?????????## + | +----------------------------------------------------+ Best States ------------- Heat Dissipation 31 Energy Generation 15 Energy Capacity 200 Matter Stores 300 Matter Capacity 300 Sight Range 16 Robot Scan Range 15 Terrain Scan Density 10 Armor Coverage 225 Resistance: KI 10 Evasion (%) 55 Recoil Reduction 3 Item Schematics ----------------- None Robot Schematics ------------------ None Fabricated ------------ Nothing Repaired ---------- Sub. Shrapnel Launcher | 7% | -8/Materials Alien Tech Used ----------------- None Achievements -------------- None Challenges ------------ None Game ------ Seed ShockLobotomyWings Manual? 0 Play Time 00:26:33 Cumulative 114.1 hours Start 2025.06.01 @ 00:47:10 End 2025.06.01 @ 01:12:59 Sessions 1 Manual Loads 0 Difficulty Rogue Special Mode None Game No. 119 Rogue 119 Adventurer 0 Explorer 0 Win Type - Total 2 Types 1/0/0/1/0/0/0/0/0/0 Lore% 59 Gallery% 55 Achievement% 49 Wizard Run 0 Options --------- Layout 1 ASCII 0 Keyboard 1 Movement Arrows Keybinds 0 Fullscreen 1 Font 36/Smallcaps Map View 50x40 Zoom Use 0% Tactical HUD 0 Map Filters NONE Filters NONE Steam 1 RUN: be42252d-8a24-4b90-b293-92d17e0e79b3